bitfinex-derivatives/quotes_BTCF0:USTF0_20250729
["timestamp","ask_amount","ask_price","bid_price","bid_amount"]
[1753790627303,0.46866,118750.0,118740.0,0.33675154]
[1753790627598,0.6936692,118750.0,118740.0,0.33675154]
[1753790628007,0.46866,118750.0,118740.0,0.33675154]
[1753790628202,0.46866,118750.0,118740.0,0.27635678]
[1753790628409,0.46866,118750.0,118740.0,0.86216598]
[1753790628702,0.46866,118750.0,118740.0,0.92256074]
[1753790628911,0.46866,118750.0,118740.0,0.86216598]
[1753790629307,0.23624,118750.0,118740.0,0.63715678]
[1753790629511,0.23624,118750.0,118740.0,1.80195678]
[1753790629708,0.23624,118750.0,118740.0,2.08736074]
[1753790629912,0.23624,118750.0,118740.0,1.86235154]
[1753790630210,0.46458,118750.0,118740.0,1.86235154]
[1753790630612,0.23624,118750.0,118740.0,1.86235154]
[1753790631014,0.6193692,118750.0,118740.0,1.86235154]
[1753790631208,0.46458,118750.0,118740.0,1.86235154]
[1753790631812,0.6895892,118750.0,118740.0,1.86235154]
[1753790632010,0.46458,118750.0,118740.0,1.86235154]
[1753790632410,0.6895892,118750.0,118740.0,1.86235154]
[1753790633412,0.46458,118750.0,118740.0,1.86235154]
[1753790633614,0.6895892,118750.0,118740.0,1.86235154]
[1753790634014,0.04782,118750.0,118740.0,2.08736074]
[1753790634213,0.04782,118750.0,118740.0,1.86235154]
[1753790634613,0.04782,118750.0,118740.0,2.08736074]
[1753790634814,0.04782,118750.0,118740.0,1.86235154]
[1753790636814,0.2733492,118760.0,118750.0,0.19193298]
[1753790637013,0.6907692,118760.0,118750.0,1.04893917]
[1753790637411,0.46576,118760.0,118750.0,1.04893917]
[1753790637813,0.6907692,118760.0,118750.0,1.04893917]
[1753790638414,0.6907692,118760.0,118750.0,1.05773221]
[1753790638613,0.46576,118760.0,118750.0,1.05773221]
[1753790639318,0.6907692,118760.0,118750.0,1.05780564]
[1753790640117,0.6907692,118760.0,118750.0,1.74641706]
[1753790640118,0.04834,118760.0,118750.0,1.74641706]
[1753790640617,0.23742,118770.0,118750.0,1.71458046]
[1753790640821,0.30764,118770.0,118760.0,0.29471]
[1753790641017,0.46576,118770.0,118760.0,0.31641198]
[1753790641217,0.46576,118770.0,118760.0,0.3615338]
[1753790641621,0.46576,118770.0,118760.0,0.42841202]
[1753790642219,0.04834,118770.0,118760.0,0.42841202]
[1753790642420,0.6907692,118770.0,118760.0,0.3832902]
[1753790642616,0.6907692,118770.0,118760.0,0.38631092]
[1753790642920,1.5549723,118770.0,118760.0,0.1057578]
[1753790643111,1.5549723,118770.0,118760.0,0.8342778]
[1753790643514,0.3574881,118760.0,118750.0,0.04512182]
[1753790643714,1.5749865,118760.0,118750.0,0.11248182]
[1753790643922,1.5749865,118760.0,118750.0,0.84096182]
[1753790644720,1.5749865,118760.0,118750.0,0.84072182]
[1753790644923,1.5749865,118760.0,118750.0,0.84172182]
[1753790645222,1.5749865,118760.0,118750.0,0.84272182]
[1753790646118,1.5749865,118760.0,118750.0,0.01936]
[1753790646319,0.6341822,118750.0,118740.0,1.26171476]
[1753790646520,0.6341822,118750.0,118730.0,0.26119187]
[1753790646521,0.7121897,118740.0,118730.0,0.06028361]
[1753790646725,1.4563389,118740.0,118730.0,0.78772361]
[1753790646925,1.4563389,118740.0,118730.0,0.54077071]
[1753790647125,0.6342106,118730.0,118720.0,0.8961731]
[1753790647327,1.3300198,118730.0,118720.0,0.8961731]
[1753790648628,1.3300198,118730.0,118720.0,0.8971731]
[1753790649418,1.3300198,118730.0,118720.0,0.8981731]
[1753790649734,1.555029,118730.0,118720.0,0.002]
[1753790649937,1.555029,118730.0,118720.0,0.72892]
[1753790650130,1.723485,118730.0,118720.0,0.72892]
[1753790650430,0.634225,118720.0,118710.0,0.79402]
[1753790650633,1.5550434,118720.0,118710.0,0.79402]
[1753790650832,1.5550434,118720.0,118710.0,0.06738]
[1753790651129,1.5550434,118720.0,118710.0,0.01215832]
[1753790651826,1.5550434,118720.0,118710.0,0.01315832]
[1753790652222,1.5550434,118720.0,118710.0,0.01415832]
[1753790653533,1.56355172,118720.0,118710.0,0.01415832]
[1753790654331,1.5550434,118720.0,118710.0,0.01415832]
[1753790655131,1.5550434,118720.0,118710.0,0.05937041]
[1753790655632,2.0550434,118720.0,118710.0,0.0659412]
[1753790656028,2.0550434,118720.0,118710.0,0.04429002]
[1753790656229,2.0550434,118720.0,118710.0,0.06593889]
[1753790656732,1.605025,118720.0,118710.0,0.06593889]
[1753790656927,2.0550434,118720.0,118710.0,0.06593889]
[1753790658833,2.7803234,118720.0,118710.0,0.06593889]
[1753790659428,2.7803234,118720.0,118710.0,0.08850253]
[1753790660836,2.7803234,118720.0,118710.0,0.05837083]
[1753790661932,2.7803234,118720.0,118710.0,0.03580719]
[1753790662636,2.7792034,118720.0,118710.0,0.03580719]
[1753790662937,2.0550434,118720.0,118710.0,0.03580719]
[1753790667641,1.605025,118720.0,118710.0,0.03580719]
[1753790667832,2.0550434,118720.0,118710.0,0.03580719]
[1753790668027,1.605025,118720.0,118710.0,0.20428629]
[1753790668227,1.8300342,118720.0,118710.0,0.20428629]
[1753790668427,1.8300342,118720.0,118710.0,0.61599629]
[1753790668428,1.605025,118720.0,118710.0,0.61599629]
[1753790668633,1.8300342,118720.0,118710.0,0.66145629]
[1753790669236,1.8300342,118720.0,118710.0,0.60448629]
[1753790670230,1.8300342,118720.0,118710.0,0.66145629]
[1753790670434,1.495865,118720.0,118710.0,0.68401993]
[1753790670630,1.495865,118720.0,118710.0,0.66145629]
[1753790670830,1.7208742,118720.0,118710.0,0.66145629]
[1753790671245,0.995865,118720.0,118710.0,0.68401993]
[1753790671436,1.220874,118720.0,118710.0,0.68401993]
[1753790672241,0.9958648,118720.0,118710.0,0.71415163]
[1753790672534,1.220874,118720.0,118710.0,0.71415163]
[1753790672740,0.9958648,118720.0,118710.0,0.68401993]
[1753790673040,1.236444,118720.0,118710.0,0.68401993]
[1753790673230,0.84297,118720.0,118710.0,0.68401993]
[1753790673438,0.84297,118720.0,118710.0,0.90902913]
[1753790673642,0.84297,118720.0,118710.0,0.68401993]
[1753790674042,0.48217,118720.0,118710.0,0.68401993]
[1753790674344,0.48217,118720.0,118710.0,0.69158799]
[1753790674530,0.48217,118720.0,118710.0,0.91659719]
[1753790674738,0.43299,118720.0,118710.0,0.90443887]
[1753790675042,0.48217,118720.0,118710.0,0.67942967]
[1753790675242,0.6506348,118720.0,118710.0,0.72464176]
[1753790676345,0.6506348,118720.0,118710.0,0.69451006]
[1753790677238,0.6506348,118720.0,118710.0,0.69452434]
[1753790677444,0.48217,118720.0,118710.0,0.69452434]
[1753790677744,0.08038,118720.0,118710.0,0.69452434]
[1753790678444,0.37347,118720.0,118710.0,0.91953354]
[1753790678646,0.4801,118720.0,118710.0,0.91953354]
[1753790679345,0.4801,118720.0,118710.0,0.69452434]
[1753790679547,0.6485653,118720.0,118710.0,0.69452434]
[1753790679741,1.0093653,118720.0,118710.0,0.69452434]
[1753790680343,0.8409,118720.0,118710.0,0.69452434]
[1753790681446,1.0093653,118720.0,118710.0,0.69452434]
[1753790682445,1.2343745,118720.0,118710.0,0.69452434]
[1753790682644,1.2343745,118720.0,118710.0,0.64931225]
[1753790683648,0.8409,118720.0,118710.0,0.64931225]
[1753790683839,0.8409,118720.0,118710.0,0.70954148]
[1753790684947,1.0659092,118720.0,118710.0,0.70954148]
[1753790685755,1.2343743,118720.0,118710.0,0.70954148]
[1753790687042,0.8735743,118720.0,118710.0,0.70954148]
[1753790687248,1.2343743,118720.0,118710.0,0.70954148]
[1753790687450,1.0659092,118720.0,118710.0,0.64931225]
[1753790688147,0.8409,118720.0,118710.0,0.64931225]
[1753790688548,0.8409,118720.0,118710.0,0.87432145]
[1753790688949,0.8409,118720.0,118710.0,0.8526583]
[1753790689247,0.8409,118720.0,118710.0,0.87434522]
[1753790690151,0.8409,118720.0,118710.0,0.64933602]
[1753790690344,0.8409,118720.0,118710.0,1.37001602]
[1753790692451,1.0659092,118720.0,118710.0,1.37001602]
[1753790693248,1.2343743,118720.0,118710.0,1.37001602]
[1753790694752,1.3443743,118720.0,118710.0,1.37001602]
[1753790695551,1.3443743,118720.0,118710.0,1.3483291]
[1753790695850,1.3443743,118720.0,118710.0,1.37002388]
[1753790700350,1.3443743,118720.0,118710.0,1.43025311]
[1753790702249,1.1193651,118720.0,118710.0,1.43025311]
[1753790702449,1.3443743,118720.0,118710.0,1.43025311]
[1753790705254,1.3443743,118720.0,118710.0,1.21111311]
[1753790705555,1.3443743,118720.0,118710.0,1.26808311]
[1753790708156,1.1193651,118720.0,118710.0,1.26808311]
[1753790708556,1.3443743,118720.0,118710.0,1.26808311]
[1753790709253,1.5693835,118720.0,118710.0,0.08392401]
[1753790709454,1.5693835,118720.0,118710.0,0.02369478]
[1753790709653,1.5693835,118720.0,118710.0,0.73873478]
[1753790710357,1.5693835,118720.0,118710.0,0.90721418]
[1753790711259,1.3443743,118720.0,118710.0,0.90721418]
[1753790712153,1.5693835,118720.0,118710.0,0.90721418]
[1753790712754,1.5693835,118720.0,118710.0,0.73873478]
[1753790712960,1.5693835,118720.0,118710.0,0.90721408]
[1753790713258,1.5693835,118720.0,118710.0,0.73873478]
[1753790713459,1.5693835,118720.0,118710.0,0.95256535]
[1753790713655,1.1193651,118720.0,118710.0,0.95256535]
[1753790713855,1.3443743,118720.0,118710.0,0.90721408]
[1753790714255,1.8443743,118720.0,118710.0,0.90721408]
[1753790714658,1.7343743,118720.0,118710.0,1.36710408]
[1753790714854,1.7343743,118720.0,118710.0,1.41245078]
[1753790715161,1.7343743,118720.0,118710.0,1.36710408]
[1753790715554,1.5093651,118720.0,118710.0,1.36710408]
[1753790715751,1.7343743,118720.0,118710.0,1.36710408]
[1753790715956,1.3443743,118720.0,118710.0,1.36710408]
[1753790716156,1.3443743,118720.0,118710.0,1.41244986]
[1753790718657,1.2343743,118720.0,118710.0,1.41244986]
[1753790719060,1.0113143,118720.0,118710.0,1.41244986]
[1753790719263,1.3628143,118720.0,118710.0,1.41244986]
[1753790719462,1.2328143,118720.0,118710.0,1.41244986]
[1753790722462,1.0078051,118720.0,118710.0,1.41244986]
[1753790722662,1.24740736,118720.0,118710.0,1.44267263]
[1753790726361,1.02239816,118720.0,118710.0,1.44267263]
[1753790726566,1.34740736,118720.0,118710.0,1.44267263]
[1753790726766,1.34740736,118720.0,118710.0,1.51006263]
[1753790727273,1.02239816,118720.0,118710.0,1.51006263]
[1753790727465,1.33740736,118720.0,118710.0,1.51006263]
[1753790728173,1.24740736,118720.0,118710.0,1.51006263]
[1753790728462,0.25091306,118720.0,118710.0,1.51006263]
[1753790728662,0.18701,118720.0,118710.0,1.47983986]
[1753790728856,0.20160367,118720.0,118710.0,1.70484906]
[1753790729058,0.18701,118720.0,118710.0,1.70484906]
[1753790729255,0.7271154,118730.0,118710.0,1.31136056]
[1753790729462,1.28534896,118730.0,118720.0,0.65857775]
[1753790729667,1.28534896,118730.0,118720.0,0.68027253]
[1753790730165,0.92454896,118730.0,118720.0,0.68027253]
[1753790731366,1.39534896,118730.0,118720.0,0.68027253]
[1753790732170,1.03454896,118730.0,118720.0,0.68027253]
[1753790732666,1.03454896,118730.0,118720.0,0.69539596]
[1753790732969,1.39534896,118730.0,118720.0,0.69539596]
[1753790735261,1.3807554,118730.0,118720.0,0.69539596]
[1753790741381,1.1557462,118730.0,118720.0,0.69539596]
[1753790741677,1.3707554,118730.0,118720.0,0.69539596]
[1753790742775,1.0036333,118730.0,118720.0,0.69539596]
[1753790742970,0.47437,118730.0,118720.0,0.69539596]
[1753790743378,0.8678304,118730.0,118720.0,0.69539596]
[1753790743678,0.7428212,118730.0,118720.0,0.69539596]
[1753790743875,1.3186304,118730.0,118720.0,0.69539596]
[1753790744879,1.3186304,118730.0,118720.0,0.23550596]
[1753790745281,1.33322087,118730.0,118720.0,0.23550596]
[1753790746781,1.33322087,118730.0,118720.0,0.30264903]
[1753790747584,1.33322087,118730.0,118720.0,0.38285903]
[1753790747782,1.33322087,118730.0,118720.0,0.54275903]
[1753790750485,1.33322087,118730.0,118720.0,0.33450903]
[1753790750686,1.33322087,118730.0,118720.0,1.05714903]
[1753790751986,1.10821167,118730.0,118720.0,1.05714903]
[1753790752181,1.33322087,118730.0,118720.0,1.05714903]
[1753790753288,1.33322087,118730.0,118720.0,1.26539903]
[1753790754983,1.33322087,118730.0,118720.0,0.54275903]
[1753790755187,1.33322087,118730.0,118720.0,1.26351903]
[1753790755390,1.33322087,118730.0,118720.0,0.13442056]
[1753790755585,1.55823007,118730.0,118720.0,0.11930827]
[1753790755785,1.33322087,118730.0,118720.0,0.83966827]
[1753790755985,1.55823007,118730.0,118720.0,0.83966827]
[1753790756186,2.05823007,118730.0,118720.0,0.83966827]
[1753790757188,2.05823007,118730.0,118720.0,0.11930827]
[1753790757490,2.05823007,118730.0,118720.0,0.83922827]
[1753790758086,2.05823007,118730.0,118720.0,0.11930827]
[1753790758391,2.05823007,118730.0,118720.0,0.83854827]
[1753790760088,2.05823007,118730.0,118720.0,0.11930827]
[1753790761786,2.05823007,118730.0,118710.0,0.76370578]
[1753790761787,0.6467854,118720.0,118710.0,0.76370578]
[1753790761993,1.58219427,118720.0,118710.0,0.71836]
[1753790762292,0.6467996,118710.0,118700.0,1.3551338]
[1753790762487,1.3426088,118710.0,118700.0,1.3551338]
[1753790762690,1.35720292,118710.0,118700.0,1.4121038]
[1753790762988,1.35720292,118710.0,118700.0,1.1952338]
[1753790763692,1.35720292,118710.0,118700.0,1.4121038]
[1753790763890,1.35720292,118710.0,118700.0,1.4141038]
[1753790764095,1.35720292,118710.0,118700.0,1.4171038]
[1753790767795,1.35720292,118710.0,118700.0,1.37175802]
[1753790768294,1.35720292,118710.0,118700.0,0.70066802]
[1753790768491,1.35720292,118710.0,118700.0,1.41718802]
[1753790770296,1.35720292,118710.0,118700.0,1.41658802]
[1753790772605,1.3426088,118710.0,118700.0,1.4619338]
[1753790773808,1.3426088,118710.0,118700.0,1.48360513]
[1753790778211,1.0075996,118710.0,118700.0,1.48360513]
[1753790778411,0.7542888,118710.0,118700.0,1.48360513]
[1753790778607,0.5292796,118710.0,118700.0,1.43825935]
[1753790778806,0.3608,118710.0,118700.0,1.43825935]
[1753790779006,0.6178547,118720.0,118710.0,0.6287992]
[1753790779210,0.7964039,118720.0,118710.0,0.69571503]
[1753790779711,0.8428639,118720.0,118710.0,0.69571503]
[1753790779911,1.0398647,118720.0,118710.0,0.69571503]
[1753790780107,1.2648739,118720.0,118710.0,0.69571503]
[1753790780313,1.2648739,118720.0,118710.0,0.65147053]
[1753790780514,1.2648739,118720.0,118710.0,0.69670657]
[1753790780716,1.2648739,118720.0,118710.0,0.65147053]
[1753790781214,1.2648739,118720.0,118710.0,0.65247053]
[1753790784113,0.9977349,118720.0,118710.0,0.65247053]
[1753790784814,1.2227441,118720.0,118710.0,0.65247053]
[1753790785021,0.9977349,118720.0,118710.0,0.65247053]
[1753790785208,1.2227441,118720.0,118710.0,0.69771615]
[1753790786222,1.3327441,118720.0,118710.0,0.69771615]
[1753790788121,1.1077349,118720.0,118710.0,0.69771615]
[1753790788314,0.9977349,118720.0,118710.0,0.69771615]
[1753790788516,1.3327441,118720.0,118710.0,0.69771615]
[1753790795021,1.3327441,118720.0,118710.0,0.65247053]
[1753790795224,1.5577533,118720.0,118710.0,0.19215043]
[1753790795526,1.5577533,118720.0,118710.0,0.23738747]
[1753790795527,1.3327441,118720.0,118710.0,0.23738747]
[1753790795728,1.3327441,118720.0,118710.0,0.26884747]
[1753790795929,1.3327441,118720.0,118710.0,0.59084747]
[1753790796426,0.9977349,118720.0,118710.0,0.69770747]
[1753790796622,1.3227441,118720.0,118710.0,0.65247043]
[1753790800233,1.2227441,118720.0,118710.0,0.65247043]
[1753790806038,0.9977349,118720.0,118710.0,0.65247043]
[1753790806337,0.46847,118720.0,118710.0,0.87747963]
[1753790806538,0.46847,118720.0,118710.0,0.93770886]
[1753790811037,0.19258,118720.0,118710.0,0.93770886]
[1753790811841,0.48207,118720.0,118710.0,0.93770886]
[1753790812646,0.48207,118720.0,118710.0,0.87747963]
[1753790815043,0.48207,118720.0,118710.0,0.65247043]
[1753790818152,0.48207,118720.0,118710.0,0.71269966]
[1753790818341,0.48207,118720.0,118710.0,0.93770886]
[1753790818648,0.48207,118720.0,118710.0,0.87747963]
[1753790820852,0.65075182,118720.0,118710.0,0.82115225]
[1753790822363,0.81921672,118720.0,118710.0,0.82115225]
[1753790822864,0.81921672,118720.0,118710.0,0.88138148]
[1753790823267,0.65075182,118720.0,118710.0,0.88138148]
[1753790823665,0.65075182,118720.0,118710.0,0.71269966]
[1753790823966,0.65075182,118720.0,118710.0,0.88138148]
[1753790824163,0.60103182,118720.0,118710.0,0.83516148]
[1753790824360,0.81885672,118720.0,118710.0,0.71232966]
[1753790824563,0.98753854,118720.0,118710.0,0.88101148]
[1753790824766,1.34833854,118720.0,118710.0,1.35278043]
[1753790825265,1.34833854,118720.0,118710.0,1.39828043]
[1753790826660,1.45833854,118720.0,118710.0,1.39828043]
[1753790826861,1.34593288,118720.0,118710.0,1.39828043]
[1753790827758,1.31499288,118720.0,118710.0,1.36757043]
[1753790828166,1.34593288,118720.0,118710.0,1.36757043]
[1753790830970,1.34593288,118720.0,118710.0,0.06917133]
[1753790831169,1.57089086,118720.0,118710.0,0.76829133]
[1753790831367,1.57089086,118720.0,118710.0,0.76789133]
[1753790831670,1.57089086,118720.0,118710.0,0.81321794]
[1753790831873,1.58549217,118720.0,118710.0,0.81321794]
[1753790832073,1.57089086,118720.0,118710.0,0.81321794]
[1753790832264,1.57089086,118720.0,118710.0,0.11449794]
[1753790832460,1.58549025,118720.0,118710.0,0.11449794]
[1753790833168,2.08549025,118720.0,118710.0,0.11449794]
[1753790834162,2.08549025,118720.0,118710.0,0.09938556]
[1753790834761,2.08549025,118720.0,118710.0,0.1220421]
[1753790835172,2.08549025,118720.0,118710.0,0.09182787]
[1753790846487,2.08549025,118720.0,118710.0,0.06917133]
[1753790846678,2.08549025,118720.0,118710.0,0.09182787]
[1753790847787,1.63557429,118720.0,118710.0,0.09182787]
[1753790847984,2.08549025,118720.0,118710.0,0.09182787]
[1753790849978,2.05506025,118720.0,118710.0,0.09182787]
[1753790853389,2.00519025,118720.0,118710.0,0.09182787]
[1753790853591,2.05506025,118720.0,118710.0,0.09182787]
[1753790854792,1.94265821,118720.0,118710.0,0.09182787]
[1753790855295,1.94265821,118720.0,118710.0,0.26030717]
[1753790855499,1.94265821,118720.0,118710.0,0.09182787]
[1753790856381,2.80717517,118720.0,118710.0,0.09182787]
[1753790862109,2.80717517,118720.0,118710.0,0.1220421]
[1753790862308,0.4384044,118710.0,118700.0,0.03024752]
[1753790862510,1.52432522,118710.0,118700.0,0.03024752]
[1753790862807,1.07714438,118700.0,118690.0,0.2122992]
[1753790863010,1.64715852,118700.0,118690.0,0.2122992]
[1753790863403,1.14088764,118700.0,118690.0,0.2122997]
[1753790863611,1.64715852,118700.0,118690.0,0.2122997]
[1753790863812,1.47840156,118700.0,118690.0,0.1699197]
[1753790864309,1.47840156,118700.0,118690.0,0.2149397]
[1753790864805,1.36596881,118700.0,118690.0,0.2149397]
[1753790865010,1.36596881,118700.0,118690.0,0.1699197]
[1753790865211,1.37447728,118700.0,118690.0,0.1685077]
[1753790865414,1.37447728,118700.0,118690.0,0.1745077]
[1753790867408,2.07019728,118700.0,118690.0,0.1745077]
[1753790867608,2.07019728,118700.0,118690.0,0.006]
[1753790869808,2.57019728,118700.0,118690.0,0.006]
[1753790874318,2.57019728,118700.0,118690.0,0.02771795]
[1753790884829,2.85164247,118700.0,118690.0,0.02771795]
[1753790891233,2.68280035,118700.0,118690.0,0.0730659]
[1753790892337,2.85164247,118700.0,118690.0,0.0730659]
[1753790892536,2.85164247,118700.0,118690.0,0.10332592]
[1753790896139,2.85164247,118700.0,118690.0,0.0730659]
[1753790899643,2.34511611,118700.0,118690.0,0.0730659]
[1753790899845,2.68280035,118700.0,118690.0,0.0730659]
[1753790901946,1.98708035,118700.0,118690.0,0.0730659]
[1753790902143,2.68228035,118700.0,118690.0,0.1509159]
[1753790902347,2.68228035,118700.0,118690.0,0.3087259]
[1753790902750,2.85112247,118700.0,118690.0,0.13584119]
[1753790903544,2.68228035,118700.0,118690.0,0.08911119]
[1753790903947,2.68228035,118700.0,118690.0,0.05799119]
[1753790906545,2.34459611,118700.0,118690.0,0.05799119]
[1753790906842,2.85112247,118700.0,118690.0,0.05799119]
[1753790908452,2.68228035,118700.0,118690.0,0.05799119]
[1753790909247,2.85112247,118700.0,118690.0,0.05799119]
[1753790910855,2.34459611,118700.0,118690.0,0.05799119]
[1753790911247,2.85112247,118700.0,118690.0,0.05799119]
[1753790912752,0.03293,118680.0,118670.0,0.79804263]
[1753790912949,0.655526,118670.0,118660.0,0.22877943]
[1753790913150,1.48401024,118670.0,118660.0,0.14452199]
[1753790913550,1.146326,118670.0,118660.0,0.43879199]
[1753790913756,1.48401024,118670.0,118660.0,0.59063199]
[1753790914152,1.31516812,118670.0,118660.0,0.59063199]
[1753790914658,1.38093213,118670.0,118660.0,0.59563199]
[1753790915257,1.38093213,118670.0,118660.0,0.58407589]
[1753790915457,1.38093213,118670.0,118660.0,0.53593589]
[1753790916352,1.38093213,118670.0,118660.0,0.3554242]
[1753790916553,2.24461425,118670.0,118660.0,0.0524139]
[1753790916760,2.41345637,118670.0,118660.0,0.0524139]
[1753790917163,2.25921471,118670.0,118660.0,0.0524139]
[1753790917463,2.41345637,118670.0,118660.0,0.0524139]
[1753790918370,2.74461425,118670.0,118660.0,0.0524139]
[1753790918562,2.69896425,118670.0,118660.0,0.0524139]
[1753790919362,2.69896425,118670.0,118660.0,0.007]
[1753790919659,2.86780637,118670.0,118660.0,0.007]
[1753790920065,2.69896425,118670.0,118660.0,0.007]
[1753790920364,2.86780637,118670.0,118660.0,0.007]
[1753790921967,2.79777637,118670.0,118660.0,0.007]
[1753790922168,2.86780637,118670.0,118660.0,0.007]
[1753790923167,2.8823892,118670.0,118660.0,0.0296741]
[1753790923962,2.8823892,118670.0,118660.0,0.0286741]
[1753790924263,2.5936792,118670.0,118660.0,0.0286741]
[1753790924760,2.5936792,118670.0,118660.0,0.0246741]
[1753790924961,2.5936792,118670.0,118660.0,0.04638461]
[1753790925670,2.42483708,118670.0,118660.0,0.04638461]
[1753790926870,2.41025425,118670.0,118660.0,0.04638461]
[1753790928277,2.57909637,118670.0,118660.0,0.04638461]
[1753790928764,2.41025425,118670.0,118660.0,0.04638461]
[1753790929267,2.57909637,118670.0,118660.0,0.04638461]
[1753790930569,1.88425637,118670.0,118660.0,0.04638461]
[1753790930873,2.57889637,118670.0,118660.0,0.04638461]
[1753790931371,0.3657943,118650.0,118640.0,0.0454139]
[1753790931568,2.24975854,118650.0,118640.0,0.11980704]
[1753790931769,2.24975854,118650.0,118640.0,0.23538704]
[1753790932976,2.24975854,118650.0,118640.0,0.25252]
[1753790933278,2.24975854,118650.0,118640.0,0.25552]
[1753790933473,2.24975854,118650.0,118640.0,0.25852]
[1753790934176,2.25837433,118650.0,118640.0,0.25852]
[1753790935271,2.25837433,118650.0,118640.0,0.15348]
[1753790935473,2.25837433,118650.0,118640.0,0.20155]
[1753790935984,2.25837433,118650.0,118640.0,0.0379]
[1753790936876,2.24865215,118650.0,118630.0,0.69468]
[1753790937180,2.24865215,118650.0,118620.0,0.364157]
[1753790937181,0.3658228,118630.0,118620.0,0.364157]
[1753790937478,1.19430704,118630.0,118620.0,0.467397]
[1753790937674,1.19430704,118630.0,118620.0,0.168607]
[1753790937876,0.365837,118620.0,118610.0,1.0946332]
[1753790938075,1.18432124,118620.0,118610.0,1.2883832]
[1753790938870,1.07197652,118620.0,118610.0,1.2883832]
[1753790940583,1.07197652,118620.0,118610.0,1.2963832]
[1753790941381,0.95197652,118620.0,118610.0,1.2963832]
[1753790941585,0.726637,118620.0,118610.0,1.2963832]
[1753790941885,0.3608,118620.0,118610.0,1.69033872]
[1753790942078,0.3608,118620.0,118610.0,1.75080465]
[1753790942580,0.3608,118630.0,118620.0,0.467397]
[1753790942782,0.3608,118630.0,118620.0,0.69273652]
[1753790942977,0.3608,118630.0,118620.0,1.11133652]
[1753790943378,0.3608,118630.0,118620.0,1.13305289]
[1753790943983,0.3608,118630.0,118620.0,0.90771337]
[1753790944284,0.5293928,118630.0,118620.0,1.58145289]
[1753790944488,0.5293928,118630.0,118620.0,1.74959289]
[1753790944786,0.3608,118630.0,118620.0,1.74959289]
[1753790945580,0.3608,118630.0,118620.0,1.52425337]
[1753790945882,0.3608,118630.0,118620.0,1.74959289]
[1753790946587,0.3608,118630.0,118620.0,1.52425337]
[1753790946790,0.5293927,118630.0,118620.0,1.74959289]
[1753790949192,0.5293927,118630.0,118620.0,1.52426599]
[1753790952592,0.5293927,118630.0,118620.0,1.74960551]
[1753790952894,0.5293927,118630.0,118620.0,1.52426599]
[1753790953691,0.5293927,118630.0,118620.0,1.35566599]
[1753790953994,0.5782327,118630.0,118620.0,1.35566599]
[1753790954196,0.7242027,118630.0,118620.0,1.35566599]
[1753790954697,0.9675227,118630.0,118620.0,1.35566599]
[1753790955085,1.19286222,118630.0,118620.0,1.35566599]
[1753790955291,1.24006222,118630.0,118620.0,1.35566599]
[1753790957300,1.17014222,118630.0,118620.0,1.41613192]
[1753790957495,1.24006222,118630.0,118620.0,1.41613192]
[1753790958100,1.36006222,118630.0,118620.0,0.72173192]
[1753790958300,1.36006222,118630.0,118620.0,1.35522599]
[1753790959800,1.36006222,118630.0,118620.0,1.41569192]
[1753790960597,1.0147227,118630.0,118620.0,1.41569192]
[1753790961103,0.3608,118630.0,118620.0,1.64103144]
[1753790961899,0.3608,118630.0,118620.0,1.41569192]
[1753790962099,0.5778328,118630.0,118620.0,1.41569192]
[1753790962300,0.7913228,118630.0,118620.0,1.41569192]
[1753790963306,0.9647228,118630.0,118620.0,1.41569192]
[1753790963493,1.0119228,118630.0,118620.0,1.41569192]
[1753790963695,0.84333,118630.0,118620.0,1.41569192]
[1753790964095,1.0119228,118630.0,118620.0,1.41569192]
[1753790964401,0.84333,118630.0,118620.0,1.41569192]
[1753790964697,1.0119226,118630.0,118620.0,1.41569192]
[1753790965203,0.84333,118630.0,118620.0,1.41569192]
[1753790966805,1.0119223,118630.0,118620.0,1.41569192]
[1753790967405,0.84333,118630.0,118620.0,1.35522599]
[1753790967600,0.40924,118630.0,118620.0,1.58056551]
[1753790968503,0.3608,118630.0,118620.0,1.58056551]
[1753790969908,0.40924,118630.0,118620.0,1.58056551]
[1753790970206,0.69976,118630.0,118620.0,1.35522599]
[1753790970408,0.84333,118630.0,118620.0,1.58056551]
[1753790970608,0.84333,118630.0,118620.0,1.35522599]
[1753790971211,0.84333,118630.0,118620.0,1.58056551]
[1753790971912,0.84333,118630.0,118620.0,1.35522599]
[1753790972211,0.84333,118630.0,118620.0,1.58056551]
[1753790973110,0.48253,118630.0,118620.0,1.58056551]
[1753790974111,0.48253,118630.0,118620.0,1.35522599]
[1753790974511,0.6511227,118630.0,118620.0,1.35522599]
[1753790975108,0.6511227,118630.0,118620.0,1.58056551]
[1753790975911,0.6511227,118630.0,118620.0,1.35522599]
[1753790976112,0.6511227,118630.0,118620.0,1.58056551]
[1753790981113,0.6511227,118630.0,118620.0,1.35522599]
[1753790982912,0.8200683,118630.0,118620.0,1.52417159]
[1753790983415,1.1808683,118630.0,118620.0,1.52417159]
[1753790983611,1.1808683,118630.0,118620.0,1.35522599]
[1753790983812,1.1808683,118630.0,118620.0,1.52417159]
[1753790984311,1.4598139,118630.0,118620.0,0.0893598]
[1753790984516,1.4598139,118630.0,118620.0,0.7825998]
[1753790985412,1.4598139,118630.0,118620.0,0.72196899]
[1753790985613,1.4598139,118630.0,118620.0,0.76744746]
[1753790986113,1.47443152,118630.0,118620.0,0.76744746]
[1753790986821,1.36192899,118630.0,118620.0,0.76744746]
[1753790987116,1.36192899,118630.0,118620.0,0.07420746]
[1753790987319,1.36192899,118630.0,118620.0,0.07320746]
[1753790988318,1.36192899,118630.0,118620.0,0.07120746]
[1753790989315,1.61192899,118630.0,118620.0,0.03428611]
[1753790989516,0.6355369,118620.0,118610.0,0.04547847]
[1753790989708,0.3523211,118610.0,118600.0,0.25627227]
[1753790989909,1.33173977,118610.0,118600.0,1.16944964]
[1753790990113,1.33173977,118610.0,118600.0,1.27419964]
[1753790990418,1.39801184,118610.0,118600.0,1.27419964]
[1753790991631,1.39801184,118610.0,118600.0,1.27519964]
[1753790992126,1.17262317,118610.0,118600.0,1.27519964]
[1753790992323,1.39801184,118610.0,118600.0,1.27519964]
[1753790997338,1.39801184,118610.0,118600.0,1.22972117]
[1753791001346,1.39801184,118610.0,118600.0,1.25143501]
[1753791001845,1.17262317,118610.0,118600.0,1.25143501]
[1753791002043,1.39801184,118610.0,118600.0,1.25143501]
[1753791002943,1.39801184,118610.0,118600.0,1.27410696]
[1753791004347,1.39801184,118610.0,118600.0,1.25143501]
[1753791004645,1.39801184,118610.0,118600.0,1.27410543]
[1753791005038,1.17262317,118610.0,118600.0,1.27410543]
[1753791005247,1.39801184,118610.0,118600.0,1.27410543]
[1753791005747,1.17262317,118610.0,118600.0,1.27410543]
[1753791006042,1.23147184,118610.0,118600.0,1.27410543]
[1753791006246,1.39801184,118610.0,118600.0,1.27410543]
[1753791007343,1.39801184,118610.0,118600.0,1.14756426]
[1753791007544,1.39801184,118610.0,118600.0,1.29352924]